Workbook

Sheet Tabulky dívky
K1: 5. | L1: 0 | M1: 0 | P1: 10. | Q1: 0 | R1: 0
A2: Skupina A - kurt | C2: Bannych Vasilisa | D2: Gerlichová Agáta | E2: Janáčková Ella | F2: Mazur Darina | G2: Pořadí | H2: Počet vítězství
A3: A1 | B3: Bannych Vasilisa | D3: 4-0 | E3: 4-0 | F3: 4-0 | G3: 1. | H3: 3
A4: A2 | B4: Gerlichová Agáta | C4: 0-4 | E4: 4-0 | F4: 4-0 | G4: 2. | H4: 2
A5: A3 | B5: Janáčková Ella | C5: 0-4 | D5: 0-4 | F5: 4-1 | G5: 3. | H5: 1
A6: A4 | B6: Mazur Darina | C6: 0-4 | D6: 0-4 | E6: 1-4 | G6: 4. | H6: 0
A8: Skupina B - kurt | C8: Kapustová Diana | D8: Barbara Pastore | E8: Martini Milana | F8: Duchečková Nela | G8: Kana Sophie Madeleine | H8: Pořadí | I8: Počet vítězství
A9: B1 | B9: Kapustová Diana | D9: 4-0 | E9: 4-1 | F9: 4-1 | G9: 4-0 | H9: 1. | I9: 4
A10: B2 | B10: Barbara Pastore | C10: 0-4 | E10: 0-4 | F10: 2-4 | G10: 1-4 | H10: 5. | I10: 0
A11: B3 | B11: Martini Milana | C11: 1-4 | D11: 4-0 | F11: 4-0 | G11: 4-0 | H11: 2. | I11: 3
A12: B4 | B12: Duchečková Nela | C12: 1-4 | D12: 4-2 | E12: 0-4 | G12: 1-4 | H12: 4. | I12: 1
A13: B5 | B13: Kana Sophie Madeleine | C13: 0-4 | D13: 4-1 | E13: 0-4 | F13: 4-1 | H13: 3. | I13: 2
A15: Skupina C - kurt | C15: Kůtová Tereza | D15: Vischi Emily | E15: Verbeščuková Rebeka | F15: Exnerová Nikola | G15: Králová Claudia | H15: Pořadí | I15: Počet vítězství
A16: C1 | B16: Kůtová Tereza | D16: 4-0 | E16: 2-4 | F16: 4-0 | G16: 4-0 | H16: 2. | I16: 3
A17: C2 | B17: Vischi Emily | C17: 0-4 | E17: 4-2 | F17: 2-4 | G17: 4-0 | H17: 4. | I17: 2
A18: C3 | B18: Verbeščuková Rebeka | C18: 4-2 | D18: 2-4 | F18: 4-3 | G18: 4-0 | H18: 1. | I18: 3
A19: C4 | B19: Exnerová Nikola | C19: 0-4 | D19: 4-2 | E19: 3-4 | G19: 4-0 | H19: 3. | I19: 2
A20: C5 | B20: Králová Claudia | C20: 0-4 | D20: 0-4 | E20: 0-4 | F20: 0-4 | H20: 5. | I20: 0
A22: Skupina D - kurt | C22: Křivanová Valerie | D22: Hanoušková Adriana | E22: Červená Agáta | F22: Žáková Linda | G22: Smržová Linda | H22: Pořadí | I22: Počet vítězství
A23: D1 | B23: Křivanová Valerie | D23: 3-4 | E23: 4-0 | F23: 2-4 | G23: 4-1 | H23: 3. | I23: 2
A24: D2 | B24: Hanoušková Adriana | C24: 4-3 | E24: 4-0 | F24: 4-1 | G24: 4-1 | H24: 1. | I24: 4
A25: D3 | B25: Červená Agáta | C25: 0-4 | D25: 0-4 | F25: 0-4 | G25: 0-4 | H25: 5. | I25: 0
A26: D4 | B26: Žáková Linda | C26: 4-2 | D26: 1-4 | E26: 4-0 | G26: 3-4 | H26: 2. | I26: 2
A27: D5 | B27: Smržová Linda | C27: 1-4 | D27: 1-4 | E27: 4-0 | F27: 4-3 | H27: 4. | I27: 2
A29: Skupina E - kurt | C29: 0 | D29: 0 | E29: 0 | F29: 0 | G29: 0 | H29: Pořadí | I29: Počet vítězství
A30: E1 | B30: 0 | D30: 0 | E30: 0 | F30: 0 | G30: 0
A31: E2 | B31: 0 | E31: 0 | F31: 0 | G31: 0
A32: E3 | B32: 0 | F32: 0 | G32: 0
A33: E4 | B33: 0 | G33: 0
A34: E5 | B34: 0

Sheet pavouk
B1: FINÁLOVÝ PAVOUK
B4: Bannych Vasilisa
C6: Bannych Vasilisa
C7: 4-0
B8: Martini Milana
D10: Bannych Vasilisa
D11: 4-0
B12: Kůtová Tereza
C14: Kůtová Tereza
C15: 4-0
B16: Hanoušková Adriana
D18: Bannych
D19: 4-1
B20: Gerlichová Agáta
C22: Gerlichová Agáta
C23: bez boje
B24: Verbeščuková Rebeka
D26: Kapustová Diana
D27: 4-2
B28: Žáková Linda
C30: Kapustová Diana
C31: 4-3
B32: Kapustová Diana

Sheet Pořadí
A1: Pořadí Dívky Z25
A22: Pořadí | B22: Příjmení | C22: 1. turnaj | D22: 2. turnaj | E22: 3. turnaj | F22: Masters | G22: Celkem
A23: 1. | B23: Bannych Vasilisa | C23: 250 | D23: 200 | E23: 300 | G23: =SUM(C23:F23) -> 750
A24: 2. | B24: Štěpánková Tereza | C24: 300 | D24: 300 | E24: 0 | G24: =SUM(C24:F24) -> 600
A25: 3. | B25: Kapustová Diana | C25: 50 | D25: 250 | E25: 250 | G25: =SUM(C25:E25) -> 550
A26: 4. | B26: Kůtová Tereza | C26: 200 | D26: 100 | E26: 200 | G26: =SUM(C26:F26) -> 500
A27: 5.-6. | B27: Martini Milana | C27: 100 | D27: 100 | E27: 100 | G27: =SUM(C27:F27) -> 300
B28: Žáková Linda | C28: 100 | D28: 100 | E28: 100 | G28: =SUM(C28:F28) -> 300
A29: 7. | B29: Hanoušková Adriana | C29: 50 | D29: 100 | E29: 100 | G29: =SUM(C29:F29) -> 250
A30: 8.-9. | B30: Gerlichová Agáta | C30: 0 | D30: 20 | E30: 200 | G30: =SUM(C30:F30) -> 220
B31: Křivanová Valerie | C31: 200 | D31: 0 | E31: 20 | G31: =SUM(C31:F31) -> 220
A32: 10. | B32: Reiská Lilly | C32: 0 | D32: 200 | E32: 0 | G32: =SUM(C32:F32) -> 200
A33: 11. | B33: Exnerová Nikola | C33: 100 | D33: 5 | E33: 20 | G33: =SUM(C33:F33) -> 125
A34: 12. | B34: Verbeščuková Rebeka | C34: 0 | D34: 20 | E34: 100 | G34: =SUM(C34:F34) -> 120
A35: 13. | B35: Vischi Emily | C35: 100 | D35: 5 | E35: 10 | G35: =SUM(C35:F35) -> 115
A36: 14. | B36: Dočkalíková Anna | C36: 50 | D36: 10 | E36: 0 | G36: =SUM(C36:F36) -> 60
A37: 15.-16 | B37: Yoshikawa Aira | C37: 50 | D37: 0 | E37: 0 | G37: 50
B38: Duchečková Nela | C38: 20 | D38: 20 | E38: 10 | G38: =SUM(C38:F38) -> 50
A39: 17. | B39: Kana Sophie Madeleine | C39: 10 | D39: 10 | E39: 20 | G39: =SUM(C39:F39) -> 40
A40: 18.-19. | B40: Smržová Linda | C40: 10 | D40: 10 | E40: 10 | G40: =SUM(C40:F40) -> 30
B41: Janáčková Ella | C41: 10 | D41: 0 | E41: 20 | G41: =SUM(C41:F41) -> 30
A42: 20. | B42: Králová Claudia | C42: 20 | D42: 0 | E42: 5 | G42: =SUM(C42:F42) -> 25
A43: 21.-25. | B43: Váchová Sophia | C43: 20 | D43: 0 | E43: 0 | G43: 20
B44: Turecká Rozárka | C44: 20 | D44: 0 | E44: 0 | G44: 20
B45: Schneider Gabriela | C45: 20 | D45: 0 | E45: 0 | G45: 20
B46: Strupková Adéla | C46: 20 | D46: 0 | E46: 0 | G46: 20
B47: Lázníčková Elvíra | C47: 0 | D47: 20 | E47: 0 | G47: =SUM(C47:F47) -> 20
A48: 26.-30. | B48: Fichtnerová Valerie | C48: 10 | D48: 0 | E48: 0 | G48: 10
B49: Šilhanová Karolina | C49: 10 | D49: 0 | E49: 0 | G49: 10
B50: Jerglová Kristýna | C50: 10 | D50: 0 | E50: 0 | G50: 10
B51: Pavelka Jil | C51: 0 | D51: 10 | E51: 0 | G51: =SUM(C51:F51) -> 10
B52: Mazur Darina | C52: 0 | D52: 0 | E52: 10 | G52: 10
A53: 31.-34. | B53: Čížová Nela | C53: 5 | D53: 0 | E53: 0 | G53: 5
B54: Smrčinová Nela | C54: 5 | D54: 0 | E54: 0 | G54: 5
B55: Červená Agáta | C55: 0 | D55: 0 | E55: 5 | G55: 5
B56: Pastore Barbara | C56: 0 | D56: 0 | E56: 5 | G56: 5
